Cogmind - Beta 15 @@@ ROGUE MODE // 2025.06.23 @ 18:07:35 Player: Cynic Result: Destroyed by Y-45 Defender with Heavy Assault Rifle Performance ------------- Evolutions (1) 500 Regions Visited (2) 400 Robots Destroyed (34) 170 Value Destroyed (851) 851 Prototype IDs (0) 0 Alien Tech Used (0) 0 Bonus (0) 0 TOTAL SCORE: 1921 Bonus ------- None Cogmind --------- Core Integrity 0/400 Matter 300/300 Energy 96/100 System Corruption 0% Temperature Cool (9) Movement Core (450) Ox8 Location -9/Materials Parts ------- > --- POWER (1) -------- (None) > --- PROPULSION (3) --- (None) > --- UTILITY (3) ------ Large Storage Unit Sensor Array > --- WEAPON (2) ------- Small Laser Heavy Mace > --- INVENTORY (15) --- Light Treads Improved Heat Sink Large Storage Unit High-capacity Matter Pod (200) Structural Scanner Improved Terrain Scanner Hardlight Generator Field Recycling Unit (0) Peak State ------------ > --- POWER ------------ Light Nuclear Core > --- PROPULSION ------- Aluminum Leg Aluminum Leg > --- UTILITY ---------- Improved Heat Sink Large Storage Unit Hardlight Generator > --- WEAPON ----------- Medium Laser Heavy Mace > --- INVENTORY -------- Ion Engine Aluminum Leg Aluminum Leg Large Storage Unit High-capacity Matter Pod Structural Scanner Improved Terrain Scanner Medium Laser [Rating: 17] Favorites ----------- Power Light Ion Engine Engine Light Ion Engine Power Core Light Nuclear Core Propulsion Aluminum Leg Treads Light Treads Leg Aluminum Leg Hover Unit Backup Propulsion I Utility Large Storage Unit Device Seismic Detector Storage Large Storage Unit Protection Light Armor Plating Weapon Medium Laser Energy Gun Medium Laser Impact Weapon Heavy Mace Build | -11 -10 -9 ------- Run | Yrd Mat Mat Slots Evolved 2 | . . 2 Power . | . . . Propulsion 1 | . . 1 Utility 1 | . . 1 Weapon . | . . . Parts Attached 21 | 9 3 9 Power 3 | 2 1 . Engine 2 | 2 . . Core 1 | . 1 . Reactor . | . . . Propulsion 5 | 2 . 3 Treads 1 | . . 1 Leg 4 | 2 . 2 Wheel . | . . . Hover . | . . . Flight . | . . . Utility 9 | 3 2 4 Device 5 | 2 1 2 Storage 2 | 1 1 . Processor . | . . . Hackware . | . . . Protection 2 | . . 2 Artifact . | . . . Weapon 4 | 2 . 2 Energy Gun 3 | 2 . 1 Energy Cannon . | . . . Ballistic Gun . | . . . Ballistic Cannon . | . . . Launcher . | . . . Special Weapon . | . . . Impact Weapon 1 | . . 1 Slashing Weapon . | . . . Piercing Weapon . | . . . Special Melee Weapon . | . . . Unidentified Prototypes . | . . . Parts Lost 14 | . 1 13 Power 3 | . 1 2 Propulsion 6 | . . 6 Utility 3 | . . 3 Weapon 2 | . . 2 Highest Loss Streak 4 | . 1 4 To Critical Strikes . | . . . Average Backups 6 | 1 7 6 Power . | . 1 . Propulsion . | . 1 . Utility 4 | . 4 5 Weapon . | . . . Tool/Special . | . . . Unused Backups 6 | . 1 5 Power . | . . . Propulsion 1 | . . 1 Utility 5 | . 1 4 Weapon . | . . . Tool/Special . | . . . Average Slot Usage (%) 83 | . 100 69 Engine 9 | . 13 5 Core 2 | . . 3 Treads 3 | . . 6 Leg 16 | . 28 7 Device 14 | . 14 15 Storage 12 | . 14 11 Protection 2 | . . 4 Energy Gun 14 | . 28 4 Impact Weapon 5 | . . 9 Peak Build Rating 17 | 9 12 17 Average Rating 9 | 6 7 11 On Entrance 6 | . 7 12 Naked Turns . | . . . Heaviest Build 36 | 14 30 36 Greatest Support 20 | 20 20 20 Greatest Overweight (x) 11 | 1 1 11 Average Overweight (x) . | . . 1 Largest Inventory Capacity 15 | 8 15 15 Average Capacity 14 | 7 14 15 Most Carried 10 | 5 10 10 Average Carried 6 | 1 7 6 Final Capacity 15 | 8 15 15 Final Carried 8 | 2 8 8 Class Distribution -------------------- 100% | Mutant Dominant Class ---------------- Mutant | -10/Materials Mutant | -9/Materials Resources | -11 -10 -9 ----------- Run | Yrd Mat Mat Matter Collected 600 | 290 210 100 Remotely . | . . . Salvage Created 1350 | 108 410 832 Parts 57 | 9 24 24 Haulers Intercepted 2 | . 2 . Recyclers Shooed 2 | . 1 1 Parts Field Recycled . | . . . Retrieved Matter . | . . . Parts Self-Destructed . | . . . Prevented . | . . . Kills | -11 -10 -9 ------- Run | Yrd Mat Mat Combat Hostiles Destroyed 25 | . 8 17 Melee 6 | . . 6 Guns 8 | . 8 . Classes Destroyed 8 | 2 4 2 Worker 1 | . 1 . Tunneler 3 | 3 . . Hauler 2 | . 2 . Recycler 2 | 1 . 1 Mechanic 1 | . . 1 Swarmer 5 | . 3 2 Grunt 16 | . 5 11 Sentry 4 | . . 4 Best Kill Streak 5 | 2 3 5 Combat Bots Only 5 | . 3 5 Max Kills in Single Turn 1 | 1 1 1 Gunslinging . | . . . Exploded . | . . . Melee 1 | . . 1 Uniques/NPCs Destroyed . | . . . Combat | -11 -10 -9 -------- Run | Yrd Mat Mat Hostile Shots Fired 205 | . 64 141 Missed 48 | . 21 27 Hits 157 | . 43 114 Projectile 157 | . 43 114 Critical Strikes 1 | . . 1 Damage Taken 1725 | . 461 1264 Core 529 | . 118 411 Absorbed by Shields 164 | . . 164 Core Remaining (%) 76 | 100 52 . Volleys Fired 61 | 13 28 20 Largest 2 | 2 2 1 Hottest 100 | 100 100 50 Shots Fired 97 | 21 56 20 Gun 97 | 21 56 20 Cannon . | . . . Launcher . | . . . Special . | . . . Kinetic . | . . . Thermal 97 | 21 56 20 Explosive . | . . . Electromagnetic . | . . . Robot Hit Streak 11 | 10 6 11 Robot Miss Streak 3 | 2 2 3 Penetration Max . | . . . Secondary Targets 1 | . 1 . Max Gunslinging Chain 1 | . 1 . Shots Hit Robots 106 | 15 34 57 Core Hits 36 | 5 20 11 Critical Kills 3 | . . 3 Critical Parts Destroyed 9 | . . 9 Critical Strikes 16 | 1 3 12 Burn 4 | 1 3 . Smash 12 | . . 12 Melee Attacks 56 | . . 56 Impact 56 | . . 56 Slashing . | . . . Piercing . | . . . Sneak Attacks 4 | . . 4 Combat Hostiles . | . . . Follow-up Attacks . | . . . Damage Inflicted 2696 | 200 475 2021 Guns 829 | 200 475 154 Cannons . | . . . Explosions . | . . . Melee 1867 | . . 1867 Ramming . | . . . Kinetic . | . . . Thermal 829 | 200 475 154 Explosive . | . . . Electromagnetic . | . . . Impact 1867 | . . 1867 Slashing . | . . . Piercing . | . . . Highest Corruption . | . . . Average Corruption . | . . . Corruption Purged . | . . . Corruption Blocked . | . . . Overload Shots . | . . . Overflow Damage 543 | . . 543 Projectiles . | . . . Explosions . | . . . Melee 543 | . . 543 Knockbacks 5 | . . 5 Impact 5 | . . 5 Kinetic . | . . . Secondary . | . . . Self-Inflicted Damage . | . . . Shots . | . . . Rammed . | . . . Targets Rammed . | . . . Kicked . | . . . Crushed . | . . . Highest Temperature 301 | 117 301 1 Average Temperature 88 | 41 110 1 Received Heat Transfer 699 | . 222 477 Effects 2 | . 2 . Energy Bleed 2 | . 2 . Siege Activations . | . . . Martial Activations . | . . . Shielding Activations . | . . . Robots Disrupted . | . . . Combat Hostiles . | . . . Robots Corrupted 13 | . . 13 Combat Hostiles 11 | . . 11 Parts Fried 15 | . . 15 Impact Corruptions 22 | . . 22 Robots Melted . | . . . Combat Hostiles . | . . . Parts Melted 5 | 1 4 . Heat Transferred 2656 | 666 1628 362 Parts Sabotaged . | . . . Parts Stolen . | . . . Parts Stripped . | . . . Power Chain Reactions . | . . . Alert | -11 -10 -9 ------- Run | Yrd Mat Mat Maximum Alert Level . | . . . Low Security (%) 100 | 100 100 100 Level 1 . | . . . Level 2 . | . . . Level 3 . | . . . Level 4 . | . . . Level 5 . | . . . High Security . | . . . Max Security . | . . . Peak Influence 160 | 10 80 160 Initial 28 | . . 28 Average 23 | 1 15 34 Influence Increases 765 | 20 249 496 Destroy 0b10 Robot/C 500 | . 160 340 Destroy 0b10 Robot/NC 60 | 20 15 25 Destroy Leader 104 | . 44 60 Successful Hack 10 | . . 10 Destroy Structure 1 | . . 1 Partial Spotted 15 | . . 15 Lose Combat Pursuer 75 | . 30 45 Influence Decreases 631 | 20 180 431 Entered New Map 41 | . . 41 Time Decay 496 | 20 180 296 Lost Part 94 | . . 94 Squads Dispatched 4 | . 2 2 Investigation 2 | . . 2 Extermination . | . . . Reinforcement 2 | . 2 . Assault . | . . . Garrison . | . . . Intercept . | . . . Searches Triggered . | . . . Construction Impeded . | . . . Haulers Reinforced . | . . . Active Scanning Responses . | . . . Cargo Convoy Interrupts . | . . . Stealth | -11 -10 -9 --------- Run | Yrd Mat Mat Distress Signals 7 | . 3 4 Communications Jammed . | . . . Distress Signals . | . . . Times Spotted 38 | . 12 26 Peak Tracking Total 5 | . 4 5 Tactical Retreats 4 | . 2 2 Traps | -11 -10 -9 ------- Run | Yrd Mat Mat Traps Triggered 1 | . . 1 Indirectly . | . . . Trap Hack Attempts . | . . . Triggered . | . . . Disarmed . | . . . Reprogrammed . | . . . Reused . | . . . Traps Extracted . | . . . Installed . | . . . Triggered . | . . . Machines | -11 -10 -9 ---------- Run | Yrd Mat Mat Machines Disabled . | . . . Max in Single Turn . | . . . Machines Repaired . | . . . Machines Dismantled . | . . . Machines Sabotaged . | . . . Overloaded Fab Kills . | . . . Hacking | -11 -10 -9 --------- Run | Yrd Mat Mat Machines Accessed 5 | . 2 3 Terminals 3 | . 1 2 Fabricators . | . . . Repair Stations 1 | . . 1 Recycling Units 1 | . 1 . Scanalyzers . | . . . Garrison Access . | . . . Total Hacks 15 | . 6 9 Successful 9 | . 4 5 Failed 6 | . 2 4 Catastrophic 1 | . . 1 Database Lockouts . | . . . Manual . | . . . Terminals 8 | . 2 6 Fabricators . | . . . Repair Stations 3 | . . 3 Recycling Units 4 | . 4 . Scanalyzers . | . . . Garrison Access . | . . . Terminal Hacks 5 | . 1 4 Record 4 | . . 4 Alert Level 1 | . 1 . Fabricator Hacks . | . . . Repair Station Hacks 1 | . . 1 Refit 1 | . . 1 Recycling Unit Hacks 3 | . 3 . Recycle Component 1 | . 1 . Report Inventory 1 | . 1 . Retrieve Components 1 | . 1 . Scanalyzer . | . . . Garrison Access Hacks . | . . . Unauthorized Hacks . | . . . Terminals . | . . . Fabricators . | . . . Repair Stations . | . . . Recycling Units . | . . . Scanalyzers . | . . . Garrison Access . | . . . Data Cores Recovered . | . . . Used . | . . . Hacking Detections 3 | . . 3 Full Trace Events 1 | . . 1 Feedback Events . | . . . Feedback Blocked . | . . . Robot Schematics Acquired . | . . . Robots Built . | . . . Authchips . | . . . Time . | . . . Total Robot Build Rating . | . . . Part Schematics Acquired . | . . . Parts Built . | . . . Authchips . | . . . Time . | . . . Total Part Build Rating . | . . . Parts Repaired . | . . . Time . | . . . Parts Recycled 1 | . 1 . Recycled Matter . | . . . Retrieved Matter . | . . . Retrieved Components 8 | . 8 . Parts Scanalyzed . | . . . Part Schematics Acquired . | . . . Parts Damaged . | . . . Bothacking | -11 -10 -9 ------------ Run | Yrd Mat Mat Used RIF Installer . | . . . Robots Hacked . | . . . Non-combat . | . . . Combat . | . . . Robot Hacks Applied . | . . . Relay Couplers Released . | . . . Fabnet Peak Effective % . | . . . Robots Rewired . | . . . Allies Hacked . | . . . Hacks Repelled . | . . . Allies | -11 -10 -9 -------- Run | Yrd Mat Mat Total Allies . | . . . Largest Group . | . . . Highest-Rated Group . | . . . Highest-Rated Ally . | . . . Total Orders . | . . . Ally Attacks . | . . . Total Damage . | . . . Kills . | . . . Allies Corrupted . | . . . Allies Melted . | . . . Intel | -11 -10 -9 ------- Run | Yrd Mat Mat Active Infowar (turns) 1082 | 64 689 329 Sensors 305 | . . 305 Terrain 29 | 29 . . Seismic 748 | 35 689 24 Robot Analysis Total . | . . . Derelict Logs Recovered . | . . . Drone Launches . | . . . Drone Recoveries . | . . . Exploration | -11 -10 -9 ------------- Run | Yrd Mat Mat Turns Passed 1744 | 149 716 879 Spaces Moved 703 | 81 324 298 Core 9 | 6 . 3 Treads 167 | . . 167 Legs 527 | 75 324 128 Wheels . | . . . Hover . | . . . Flight . | . . . Fastest Speed 50 | 50 120 190 Average Speed 194 | 120 187 222 Slowest Speed 600 | 190 190 600 Overloaded Moves . | . . . Propulsion Burnouts . | . . . Robots Hopped . | . . . Potential Cave-ins . | . . . Cave-ins Triggered . | . . . Exploration Rate (%) 17 | 4 30 18 Regions Visited 2 Branch Regions . Pre-discovered Areas . | . . . Known Exits Taken . | . . . Unknown Exits Taken 2 | 1 1 . Scrap Searched . | . . . Spaces Dug 1 | . . 1 Terrain Destroyed 1 | . . 1 Melee 1 | . . 1 Projectile . | . . . AOE . | . . . Terrain Rammed . | . . . Walls Destroyed . | . . . Machines Disabled . | . . . Actions | -11 -10 -9 --------- Run | Yrd Mat Mat Total 886 | 112 377 397 Wait 13 | . 13 . Move 701 | 80 323 298 Hop . | . . . Pick Up 27 | 9 9 9 Fast Attach . | . . . Attach 19 | 8 1 10 Detach 2 | 1 . 1 Swap 6 | 1 2 3 Drop 1 | . 1 . Fire 61 | 13 28 20 Melee 56 | . . 56 Ram . | . . . Kick . | . . . Crush . | . . . Escape Stasis . | . . . Rewire . | . . . Trap . | . . . Miscellaneous . | . . . Route ------- -11/Scrapyard -10/Materials -9/Materials History --------- Turn | Location | Event 21 | -11/Scrapyard | Discovered new exit (range 16) 150 | -11/Scrapyard | Entered Materials 305 | -10/Materials | Build established: Mutant 798 | -10/Materials | Discovered new exit (range 13) 866 | -10/Materials | Entered another Materials area 866 | -9/Materials | Evolved 2 slots: Propulsion x1, Utility x1 1006 | -9/Materials | Lost 4 parts (2n1u1w) 1184 | -9/Materials | Core integrity fell below 50% 1202 | -9/Materials | Lost 4 parts (1p2n1w) 1667 | -9/Materials | Core integrity fell below 20% 1745 | -9/Materials | Destroyed by Y-45 Defender with Heavy Assault Rifle Last Messages --------------- R-06 Scavenger collects Heat Sink. Destroyed Heat Sink. G-34 Mercenary system corrupted by crushing effect. G-34 Mercenary system terminally corrupted. Aluminum Leg fried. R-06 Scavenger collects Flight Unit. Acquired 6 matter. A-02 Transporter destroyed. Acquired Lgt. Armor Plating. Destroyed Wheel. Destroyed Lgt. Ion Engine. K-01 Serf destroyed. U-05 Engineer destroyed. K-01 Serf collects debris. W-16 Scout sends out distress signal. K-01 Serf collects debris. Lgt. Armor Plating destroyed. K-01 Serf collects debris. Lgt. Treads destroyed. K-01 Serf collects debris. Map ----- +----------------------------------------------------+ | ?????????????????????????????????????????? | | ?????????????????????????????????????????? | | ?????????????????????????????????????????? | | ?????????????????????????????????????????? | | ?????????????????????????????????????????? | | ?????????????????????????????????????????? | | ?????????????????????????????????????????? | | ?????????????????????????????????????????? | | ?????????????????????????????????????????? | | ???????????????????????????########??????? | | ???????????????????????????# #??????? | | ???????????????????????????#""" #??????? | | ???????????????????????????#"R #??????? | | ???????????????????????????#""" #??##### | | ???????????????????????????# #??# | | ???????????????????????????#*%= #??# | | ????????????#+###############+######## | | ???????????# ? % = =% % | | ???????????# ##### ########== ###### | | ???????????# ??????# #??????#% """ #????? | | ???????????# ??####+###????# """ #????? | | ??????????## ?# ! #????# """ #????? | | ??????????# # s% #????# #????? | | ??????????# # k #????# ???? | | ??????????# Y % #????# ########???? | | ??????????# #@ ! #????# ???????????? | | ??????????# ??#! | #????#+???????????? | | ??????????##????########????? ?????#?????? | | ????????????????????????????? ?????# # | | ????????????????????????????? ?????# | | ????????????????????????????? ???????????? | | ????????????????????????????? ???????????? | | ?????????????????????????????????????????? | | ?????????????????????????????????????????# | | ?????????????????????????????????????????# | | ?????????????????????????????????????????# | | ?????????????????????????????????????????# | | ?????????????????????????????????????????# | | ?????????????????????????????????????????# | | ?????????????????????????????????????????# | | ?????????????????????????????????????????# | | ?????????????????????????????????????????? | | ?????????????????????????????????????????? | | ?????????????????????????????????????????? | | ?????????????????????????????????????????? | | ?????????????????????????????????????????? | | ?????????????????????????????????????????? | | ??????????????????????????????????????#### | | ??????????????????????????????????????#!! | | ??????????????????????????????????????#!! | +----------------------------------------------------+ Best States ------------- Heat Dissipation 42 Energy Generation 14 Energy Capacity 250 Matter Stores 300 Matter Capacity 300 Sight Range 16 Robot Scan Range 14 Terrain Scan Range 16 Terrain Scan Density 10 Armor Coverage 150 Evasion (%) 55 Recoil Reduction 1 Item Schematics ----------------- None Robot Schematics ------------------ None Fabricated ------------ Nothing Repaired ---------- Nothing Alien Tech Used ----------------- None Achievements -------------- Power Corrupts Challenges ------------ None Game ------ Seed ReflectiveSpreadAirjet Manual? 0 Play Time 00:25:25 Cumulative 3.4 hours Start 2025.06.23 @ 17:43:25 End 2025.06.23 @ 18:07:35 Sessions 1 Manual Loads 0 Difficulty Rogue Special Mode None Game No. 8 Rogue 8 Adventurer 0 Explorer 0 Win Type - Total 0 Types 0/0/0/0/0/0/0/0/0/0 Lore% 2 Gallery% 7 Achievement% 7 Wizard Run 0 Options --------- Layout 0 ASCII 0 Keyboard 0 Movement Mouse Keybinds 0 Fullscreen 1 Font 36/Smallcaps Map View 76x50 Zoom Use 0% Tactical HUD 0 Map Filters NONE Filters NONE Steam 1 RUN: 06291bde-3d91-491a-9109-855b1973ac87